bitfinex/quotes_SOLUSD_20250712
["timestamp","ask_amount","ask_price","bid_price","bid_amount"]
[1752296099653,4.51765807,162.31,162.28,33.1]
[1752296099821,0.7,162.3,162.29,33.1]
[1752296101115,0.7,162.3,162.29,36.91765807]
[1752296101438,0.7,162.3,162.29,16.78468397]
[1752296101616,0.7,162.3,162.29,49.88468397]
[1752296102129,0.7,162.3,162.29,33.1]
[1752296102332,4.51765807,162.3,162.29,33.1]
[1752296102946,0.7,162.3,162.29,33.1]
[1752296112529,0.7,162.3,162.29,33.06]
[1752296113651,3.14459703,162.3,162.29,33.06]
[1752296114761,3.14459703,162.3,162.28,0.06]
[1752296114933,4.49309056,162.29,162.28,0.06]
[1752296115739,12.16609056,162.29,162.28,0.06]
[1752296115943,12.16609056,162.29,162.25,0.06]
[1752296115944,3.82309056,162.26,162.25,0.06]
[1752296116264,3.82309056,162.26,162.25,33.1]
[1752296116439,4.49309056,162.26,162.25,33.1]
[1752296117344,12.17459056,162.26,162.19,88.84]
[1752296117545,3.82309056,162.22,162.2,33.04]
[1752296117744,0.67,162.21,162.2,33.04]
[1752296118339,0.67,162.22,162.2,33.04]
[1752296119551,0.67,162.21,162.2,33.04]
[1752296121162,0.67,162.23,162.2,36.86309056]
[1752296122766,3.82309056,162.25,162.2,36.86309056]
[1752296123060,0.67,162.22,162.2,36.86309056]
[1752296124370,0.67,162.25,162.21,21.16777453]
[1752296124541,0.67,162.25,162.23,3.82309056]
[1752296124736,7.6815,162.26,162.24,33.02]
[1752296124965,8.3515,162.26,162.24,33.02]
[1752296126341,11.79669056,162.3,162.25,3.82309056]
[1752296126663,0.67,162.29,162.26,33.02]
[1752296127971,4.49309056,162.29,162.26,33.02]
[1752296128265,0.67,162.28,162.26,33.02]
[1752296130971,4.49309056,162.28,162.26,33.02]
[1752296131163,0.67,162.27,162.26,33.02]
[1752296131677,4.49309056,162.29,162.26,33.02]
[1752296131854,0.67,162.28,162.26,33.02]
[1752296132057,4.49309056,162.28,162.26,33.02]
[1752296132256,3.82309056,162.28,162.26,33.02]
[1752296132454,0.67,162.27,162.26,33.02]
[1752296133378,4.49309056,162.27,162.26,33.02]
[1752296134556,0.67,162.27,162.26,33.02]
[1752296138187,4.49309056,162.27,162.26,33.02]
[1752296141479,4.49309056,162.27,162.2,4.38309056]
[1752296141680,3.82309056,162.25,162.21,32.96]
[1752296141884,0.67,162.24,162.21,32.96]
[1752296142985,0.67,162.23,162.21,32.96]
[1752296144690,4.51309056,162.25,162.21,32.96]
[1752296144889,0.69,162.24,162.21,32.96]
[1752296148223,3.82309056,162.25,162.21,32.96]
[1752296148389,0.69,162.23,162.21,32.96]
[1752296149595,0.69,162.22,162.21,32.96]
[1752296150783,0.69,162.22,162.21,33.02]
[1752296151294,4.51309056,162.24,162.21,33.02]
[1752296151676,0.69,162.24,162.21,33.02]
[1752296153898,4.51309056,162.26,162.22,0.56]
[1752296154093,0.69,162.25,162.21,37.40309056]
[1752296155183,0.69,162.24,162.21,33.02]
[1752296156283,0.69,162.25,162.21,37.40309056]
[1752296157206,26.03,162.27,162.22,0.56]
[1752296157386,4.51309056,162.26,162.22,0.56]
[1752296158397,0.69,162.26,162.22,4.38309056]
[1752296158603,0.69,162.26,162.22,3.82309056]
[1752296158783,0.69,162.26,162.23,0.56]
[1752296158984,0.69,162.26,162.24,32.9]
[1752296159404,4.51309056,162.26,162.24,32.9]
[1752296159701,0.69,162.25,162.24,32.9]
[1752296160488,0.72,162.27,162.24,32.9]
[1752296160905,4.54309056,162.27,162.24,32.9]
[1752296161206,0.69,162.26,162.24,32.9]
[1752296161403,0.03,162.27,162.24,33.46]
[1752296161587,0.03,162.27,162.24,36.72309056]
[1752296161789,0.03,162.27,162.25,0.56]
[1752296161992,0.03,162.27,162.24,36.72309056]
[1752296162197,0.03,162.27,162.24,33.46]
[1752296162404,0.69,162.26,162.24,32.9]
[1752296163911,0.69,162.25,162.24,32.9]
[1752296164518,4.51309056,162.25,162.24,32.9]
[1752296168206,0.69,162.25,162.24,32.9]
[1752296169614,4.51309056,162.25,162.24,32.9]
[1752296172895,4.51309056,162.25,162.24,32.96]
[1752296174712,4.51309056,162.25,162.24,0.06]
[1752296175213,12.75879056,162.25,162.24,0.06]
[1752296175595,8.2457,162.23,162.18,0.1]
[1752296175812,26.0,162.15,162.14,0.1]
[1752296176106,4.48309056,162.15,162.14,0.1]
[1752296176309,21.26777453,162.15,162.14,0.1]
[1752296176617,26.66,162.15,162.14,0.1]
[1752296176819,30.48309056,162.15,162.14,0.1]
[1752296177117,4.48309056,162.15,162.14,0.1]
[1752296178712,30.48309056,162.15,162.14,0.1]
[1752296180026,26.0,162.15,162.14,0.1]
[1752296180204,0.66,162.17,162.14,0.1]
[1752296180205,3.82309056,162.16,162.14,0.1]
[1752296181409,3.82309056,162.16,162.14,0.8]
[1752296181606,3.82309056,162.16,162.14,0.1]
[1752296181807,0.66,162.17,162.14,0.1]
[1752296182008,3.82309056,162.16,162.14,0.1]
[1752296182822,0.66,162.17,162.14,0.1]
[1752296183021,3.82309056,162.16,162.14,0.1]
[1752296183727,3.82309056,162.15,162.14,0.1]
[1752296188927,4.48309056,162.15,162.14,33.36]
[1752296189423,3.82309056,162.15,162.14,33.36]
[1752296191035,4.48309056,162.15,162.14,33.36]
[1752296191333,0.66,162.15,162.14,33.36]
[1752296191508,4.48309056,162.15,162.14,33.36]
[1752296194514,3.82309056,162.15,162.14,33.36]
[1752296194822,3.82309056,162.15,162.14,34.06]
[1752296195436,3.82309056,162.15,162.14,33.36]
[1752296196536,4.48309056,162.15,162.14,33.36]
[1752296196740,3.82309056,162.15,162.14,33.36]
[1752296197518,8.9357,162.18,162.14,33.36]
[1752296197817,3.82309056,162.16,162.14,33.36]
[1752296198024,3.82309056,162.16,162.14,34.06]
[1752296198651,3.82309056,162.15,162.14,34.06]
[1752296198831,3.82309056,162.15,162.14,33.36]
[1752296200531,4.48309056,162.15,162.14,33.36]
[1752296203519,0.66,162.15,162.14,33.36]
[1752296203724,4.48309056,162.15,162.14,33.36]
[1752296206336,3.82309056,162.15,162.14,33.36]
[1752296206920,3.82309056,162.16,162.14,34.05]
[1752296207654,0.03,162.18,162.15,0.69]
[1752296207858,0.03,162.18,162.17,29.82309056]
[1752296208019,3.82309056,162.24,162.18,16.78468397]
[1752296208219,3.82309056,162.24,162.19,4.51309056]
[1752296208433,3.82309056,162.25,162.2,37.45309056]
[1752296208637,3.82309056,162.24,162.21,0.69]
[1752296209028,3.82309056,162.23,162.2,32.94]
[1752296209226,3.82309056,162.23,162.21,0.69]
[1752296210134,3.82309056,162.23,162.2,32.94]
[1752296210327,3.82309056,162.23,162.2,33.63]
[1752296211452,3.82309056,162.23,162.21,0.69]
[1752296215739,3.82309056,162.24,162.21,0.69]
[1752296215937,3.82309056,162.25,162.22,0.69]
[1752296216139,3.82309056,162.25,162.23,32.88]
[1752296216339,3.82309056,162.25,162.23,33.57]
[1752296216548,3.85309056,162.26,162.23,33.57]
[1752296218058,0.03,162.26,162.24,0.69]
[1752296218235,0.03,162.26,162.25,0.69]
[1752296219656,0.03,162.26,162.24,16.78468397]
[1752296220038,0.03,162.26,162.25,0.69]
[1752296222840,0.03,162.26,162.24,17.47468397]
[1752296223043,0.73,162.26,162.23,32.88]
[1752296223241,4.55309056,162.26,162.23,32.88]
[1752296223548,4.52309056,162.25,162.23,32.88]
[1752296225357,0.03,162.26,162.23,32.88]
[1752296225661,3.82309056,162.25,162.23,33.57]
[1752296225864,3.85309056,162.26,162.23,33.57]
[1752296226056,0.03,162.26,162.23,33.57]
[1752296226351,3.85309056,162.26,162.23,33.57]
[1752296226552,0.03,162.26,162.23,33.57]
[1752296226757,3.85309056,162.26,162.23,33.57]
[1752296227973,0.03,162.26,162.23,33.57]
[1752296228147,3.85309056,162.26,162.23,32.88]
[1752296228466,0.03,162.26,162.24,0.69]
[1752296228673,0.03,162.26,162.25,54.15777453]
[1752296229339,0.03,162.26,162.25,143.25777453]
[1752296230362,0.03,162.26,162.25,146.2952076]
[1752296236671,0.03,162.26,162.25,109.61211704]
[1752296236968,0.03,162.26,162.25,146.2752076]
[1752296237571,0.03,162.26,162.25,167.76211704]
[1752296238664,0.03,162.26,162.25,172.2552076]
[1752296239851,0.03,162.26,162.25,115.1]
[1752296240052,0.69,162.26,162.25,121.94]
[1752296240457,0.03,162.26,162.25,121.94]
[1752296244763,0.03,162.26,162.25,32.84]
[1752296247086,4.51309056,162.26,162.25,32.84]
[1752296247388,1.6267,162.25,162.18,0.06]
[1752296247560,3.82309056,162.19,162.18,0.06]
[1752296247767,4.48309056,162.19,162.18,0.06]
[1752296250878,10.15479056,162.24,162.18,0.06]
[1752296250879,3.82309056,162.22,162.18,0.73]
[1752296251175,0.66,162.21,162.19,32.84]
[1752296251757,4.48309056,162.21,162.19,32.84]
[1752296252463,0.66,162.21,162.19,32.84]
[1752296252673,4.48309056,162.21,162.19,32.84]
[1752296253665,0.66,162.21,162.19,32.84]
[1752296254070,3.82309056,162.22,162.19,32.84]
[1752296254264,4.48309056,162.22,162.19,32.84]
[1752296254467,4.48309056,162.21,162.19,32.84]
[1752296256959,3.82309056,162.21,162.19,32.84]
[1752296257164,0.66,162.2,162.19,32.84]
[1752296257460,4.48309056,162.2,162.19,32.84]
[1752296263787,4.48309056,162.2,162.18,0.06]
[1752296263969,3.82309056,162.19,162.18,0.06]
[1752296264171,4.53309056,162.19,162.18,0.06]
[1752296264805,6.05459056,162.19,162.18,0.06]
[1752296265011,12.39439056,162.19,162.18,0.06]
[1752296280789,0.03,162.21,162.18,0.06]
[1752296280790,3.82309056,162.2,162.18,0.06]
[1752296280993,3.85309056,162.21,162.18,0.74]
[1752296281792,4.56309056,162.21,162.18,0.74]
[1752296282107,0.03,162.21,162.18,0.74]
[1752296282296,3.85309056,162.21,162.18,0.74]
[1752296282496,4.56309056,162.21,162.18,0.06]
[1752296283001,4.56309056,162.21,162.18,0.74]
[1752296283195,3.82309056,162.2,162.18,0.74]
[1752296283396,3.82309056,162.2,162.18,0.06]
[1752296283397,4.53309056,162.2,162.18,0.06]
[1752296283605,4.53309056,162.19,162.18,0.06]
[1752296287608,0.71,162.19,162.18,0.06]
[1752296287799,4.53309056,162.19,162.18,0.06]
[1752296297523,0.71,162.19,162.18,0.06]
[1752296297711,4.53309056,162.19,162.18,0.06]
[1752296311633,4.56309056,162.19,162.18,0.06]
[1752296320323,21.34777453,162.19,162.18,0.06]
[1752296320525,25.17086509,162.19,162.18,0.06]
[1752296321046,21.34777453,162.19,162.18,0.06]
[1752296321919,6.0701,162.17,162.14,0.1]
[1752296322122,3.82309056,162.15,162.14,0.1]
[1752296322530,4.53309056,162.15,162.14,0.1]
[1752296324746,26.71,162.15,162.14,0.1]
[1752296325044,30.53309056,162.15,162.14,0.1]
[1752296333245,30.51309056,162.15,162.14,0.1]
[1752296334938,29.14136818,162.15,162.14,0.1]
[1752296344757,28.45136818,162.15,162.14,0.1]
[1752296344964,0.72,162.18,162.14,0.78]
[1752296345257,0.72,162.18,162.15,0.68]
[1752296345463,2.45136818,162.16,162.15,0.68]
[1752296345757,2.45136818,162.17,162.16,0.68]
[1752296345960,3.14136818,162.17,162.14,0.1]
[1752296346150,2.45136818,162.15,162.14,0.1]
[1752296347239,2.45136818,162.15,162.14,0.78]
[1752296347753,2.45136818,162.16,162.14,0.78]
[1752296349059,2.45136818,162.16,162.15,0.68]
[1752296350554,0.03,162.18,162.15,0.68]
[1752296351360,2.48136818,162.18,162.14,0.1]
[1752296351553,2.48136818,162.18,162.16,0.68]
[1752296353768,0.03,162.18,162.17,0.68]
[1752296354766,0.03,162.18,162.17,35.69136818]
[1752296355148,0.03,162.18,162.17,33.24]
[1752296357455,3.85582613,162.18,162.15,0.68]
[1752296357645,3.82582613,162.17,162.15,0.68]
[1752296358065,3.82582613,162.17,162.14,33.34]
[1752296358971,3.82582613,162.17,162.14,32.66]
[1752296359170,3.82582613,162.17,162.15,0.68]
[1752296359471,3.82582613,162.17,162.14,32.66]
[1752296359653,3.82582613,162.17,162.14,33.34]
[1752296360045,0.03,162.18,162.15,0.68]
[1752296360463,0.03,162.18,162.16,3.82582613]
[1752296360869,0.03,162.18,162.17,0.68]
[1752296363772,0.03,162.18,162.17,4.50582613]
[1752296369076,0.03,162.18,162.17,30.50582613]
[1752296371664,0.03,162.18,162.17,63.00582613]
[1752296372862,0.03,162.18,162.17,79.7905101]
[1752296373063,0.03,162.19,162.18,16.78468397]
[1752296373268,0.03,162.19,162.18,110.3905101]
[1752296374159,0.03,162.2,162.18,110.3905101]
[1752296374479,0.03,162.2,162.19,21.2905101]
[1752296374975,0.03,162.2,162.19,0.68]
[1752296375274,0.03,162.2,162.19,36.98582613]
[1752296376967,0.03,162.2,162.19,53.7705101]
[1752296377883,0.03,162.2,162.19,142.8705101]
[1752296383889,0.03,162.21,162.2,16.78468397]
[1752296384264,0.03,162.21,162.2,21.2705101]
[1752296386778,0.03,162.21,162.2,110.3705101]
[1752296393194,0.03,162.26,162.2,110.3705101]
[1752296393195,0.03,162.26,162.24,16.78468397]
[1752296393381,0.03,162.26,162.25,36.22582613]
[1752296393589,0.03,162.26,162.25,36.88582613]
[1752296394312,0.03,162.26,162.25,56.74412014]
[1752296394613,0.03,162.26,162.25,52.91829401]
[1752296394789,0.03,162.26,162.25,56.08412014]
[1752296395504,0.03,162.26,162.25,53.0105101]
[1752296395679,0.03,162.26,162.25,53.6705101]
[1752296396182,0.03,162.26,162.25,53.0105101]
[1752296397479,0.03,162.26,162.25,53.6705101]
[1752296398598,0.03,162.26,162.25,145.79699609]
[1752296405204,0.03,162.27,162.25,145.79699609]
[1752296405205,0.03,162.27,162.26,16.78468397]
[1752296405391,0.03,162.27,162.26,21.2705101]
[1752296406089,0.03,162.27,162.26,26.22706384]
[1752296406289,0.66,162.33,162.32,26.0]
[1752296406489,0.66,162.33,162.32,151.28582613]
[1752296408095,0.66,162.33,162.32,147.46]
[1752296409317,0.66,162.33,162.32,151.28582613]
[1752296409516,0.66,162.34,162.32,151.28582613]
[1752296409814,0.66,162.34,162.33,3.82582613]
[1752296410517,0.66,162.34,162.33,92.92582613]
[1752296410701,0.86,162.35,162.33,92.92582613]
[1752296410903,0.86,162.35,162.34,32.34]
[1752296411101,0.86,162.35,162.34,36.16582613]
[1752296411102,0.2,162.35,162.34,36.16582613]
[1752296411300,0.2,162.35,162.34,52.9505101]
[1752296411518,0.2,162.35,162.34,142.0505101]
[1752296412513,0.2,162.35,162.34,142.7105101]
[1752296412817,0.2,162.35,162.34,142.0505101]
[1752296413319,0.2,162.35,162.34,142.7105101]
[1752296413994,0.92,162.35,162.34,142.0305101]
[1752296414507,0.2,162.35,162.34,142.0305101]
[1752296417993,0.2,162.35,162.34,142.7505101]
[1752296420996,0.2,162.36,162.35,16.78468397]
[1752296421204,0.2,162.36,162.35,21.3305101]
[1752296422210,0.2,162.38,162.37,105.65468397]
[1752296422517,0.2,162.38,162.37,141.7605101]
[1752296422726,0.2,162.38,162.37,142.4805101]
[1752296423022,0.2,162.41,162.39,42.78468397]
[1752296423212,0.2,162.41,162.39,82.71633623]
[1752296423409,0.2,162.41,162.39,83.43633623]
[1752296424428,0.2,162.41,162.39,79.6105101]
[1752296425005,0.2,162.41,162.39,78.8905101]
[1752296425207,0.2,162.41,162.39,168.4805101]
[1752296425410,0.2,162.41,162.39,172.30633623]
[1752296427717,0.2,162.41,162.39,168.4805101]
[1752296427914,0.2,162.41,162.39,172.30633623]
[1752296433530,0.2,162.41,162.4,16.78468397]
[1752296433712,0.2,162.41,162.4,25.15633623]
[1752296436329,0.2,162.42,162.4,132.47633623]
[1752296436515,0.2,162.43,162.42,46.6105101]
[1752296436911,0.2,162.43,162.42,47.3305101]
[1752296439007,0.2,162.43,162.42,136.2005101]
[1752296439626,0.2,162.43,162.42,109.4805101]
[1752296440709,0.92,162.43,162.42,135.4805101]
[1752296441139,0.92,162.43,162.42,109.4805101]
[1752296441342,0.92,162.43,162.42,135.4805101]
[1752296442942,0.92,162.43,162.42,46.6105101]
[1752296443140,0.2,162.43,162.42,135.4805101]
[1752296445616,0.86,162.43,162.42,135.4805101]
[1752296446023,0.86,162.43,162.42,42.78468397]
[1752296447837,0.86,162.43,162.42,46.6105101]
[1752296448027,0.86,162.43,162.42,42.78468397]
[1752296448228,0.86,162.43,162.42,46.6105101]
[1752296449729,0.86,162.43,162.42,42.78468397]
[1752296451042,0.86,162.43,162.42,114.87]
[1752296451244,0.86,162.43,162.42,88.87]
[1752296454946,0.86,162.43,162.41,121.11]
[1752296455138,0.2,162.43,162.41,121.11]
[1752296455331,0.66,162.42,162.41,121.11]
[1752296456931,0.2,162.43,162.41,124.93582613]
[1752296457248,0.86,162.43,162.41,124.93582613]
[1752296458539,0.86,162.43,162.41,121.11]
[1752296458738,0.86,162.43,162.41,124.93582613]
[1752296458945,0.66,162.42,162.41,124.93582613]
[1752296460148,0.66,162.42,162.41,121.11]
[1752296461863,0.66,162.42,162.41,32.24]
[1752296462164,4.48582613,162.42,162.41,32.16]
[1752296462460,0.66,162.42,162.41,32.16]
[1752296465377,0.66,162.42,162.38,0.06]
[1752296465378,8.0509,162.41,162.38,0.06]
[1752296465669,3.82582613,162.39,162.36,32.14]
[1752296465837,3.82582613,162.37,162.36,32.14]
[1752296466038,0.66,162.37,162.36,32.14]
[1752296469363,0.66,162.39,162.36,35.96582613]
[1752296469661,0.66,162.38,162.36,35.96582613]
[1752296471167,0.66,162.37,162.36,35.96582613]
[1752296471467,0.66,162.39,162.36,35.96582613]
[1752296473270,8.7109,162.41,162.39,26.0]
[1752296473503,0.03,162.42,162.4,35.96582613]
[1752296473763,0.03,162.42,162.41,3.82582613]
[1752296478361,0.03,162.42,162.41,92.69582613]
[1752296478876,0.03,162.42,162.41,88.87]
[1752296479182,0.03,162.42,162.41,92.69582613]
[1752296480260,0.03,162.42,162.41,88.87]
[1752296480451,0.03,162.42,162.41,110.1605101]
[1752296481872,0.03,162.42,162.41,92.69582613]
[1752296482182,0.69,162.42,162.41,120.97]
[1752296482678,4.51582613,162.42,162.41,32.1]
[1752296483257,4.51582613,162.42,162.35,20.6105101]
[1752296483587,3.82582613,162.4,162.36,32.1]
[1752296483775,0.66,162.39,162.36,32.1]
[1752296484293,0.66,162.39,162.38,26.0]
[1752296484459,0.66,162.39,162.38,32.1]
[1752296488582,0.66,162.39,162.38,32.16]
[1752296490462,10.86712613,162.39,162.38,32.16]
[1752296490658,10.86712613,162.39,162.38,0.06]
[1752296494571,7.0413,162.39,162.38,0.06]
[1752296494771,0.66,162.39,162.38,0.06]
[1752296495091,0.66,162.4,162.38,0.06]
[1752296495389,0.66,162.4,162.39,32.08]
[1752296497895,4.48582613,162.4,162.39,32.08]
[1752296499677,0.66,162.4,162.39,32.08]
[1752296500795,4.48582613,162.4,162.39,32.08]
[1752296501886,0.66,162.4,162.39,32.08]
[1752296502907,4.48582613,162.4,162.39,32.08]
[1752296507590,0.66,162.4,162.39,32.08]
[1752296507984,4.48582613,162.4,162.39,32.08]
[1752296511103,4.51582613,162.4,162.39,32.08]
[1752296513393,3.85582613,162.4,162.39,32.08]
[1752296513710,4.52582613,162.4,162.39,32.08]
[1752296514111,0.03,162.4,162.39,32.08]
[1752296514411,3.85582613,162.4,162.39,32.08]
[1752296514709,4.52582613,162.4,162.39,32.08]
[1752296515881,0.7,162.4,162.39,32.08]
[1752296516085,3.85582613,162.4,162.39,32.08]
[1752296516309,4.52582613,162.4,162.39,32.08]
[1752296517685,4.52582613,162.4,162.38,0.06]
[1752296517886,4.49582613,162.39,162.38,0.06]
[1752296519611,12.20802613,162.39,162.38,0.06]
[1752296521513,3.85582613,162.4,162.38,0.06]
[1752296521903,0.03,162.4,162.39,32.0]
[1752296525018,3.85582613,162.4,162.39,32.0]
[1752296525223,4.52582613,162.4,162.38,0.06]
[1752296525517,4.49582613,162.39,162.38,0.06]
[1752296527125,0.67,162.39,162.38,0.06]
[1752296527424,4.49582613,162.39,162.38,0.06]
[1752296530427,3.85582613,162.4,162.38,0.06]
[1752296531329,0.03,162.4,162.38,0.06]
[1752296531503,0.03,162.4,162.38,4.56582613]
[1752296531823,0.03,162.42,162.39,4.50582613]
[1752296532004,0.03,162.42,162.4,35.80582613]
[1752296532208,0.03,162.42,162.4,36.48582613]
[1752296532407,0.03,162.42,162.41,0.68]
[1752296536613,0.03,162.42,162.4,31.98]
[1752296536814,0.73,162.42,162.4,31.98]
[1752296537025,0.03,162.42,162.4,31.98]
[1752296538122,0.7,162.41,162.4,31.98]
[1752296538828,4.52582613,162.41,162.4,31.98]
[1752296539515,6.05272613,162.41,162.38,32.02]
[1752296539716,3.82582613,162.39,162.38,32.02]
[1752296539923,4.52582613,162.39,162.38,32.02]
[1752296541708,4.52582613,162.39,162.38,0.06]
[1752296547318,6.129,162.38,162.31,31.94]
[1752296547622,3.82582613,162.32,162.27,0.06]
[1752296547829,3.82582613,162.29,162.28,31.94]
[1752296548022,3.82582613,162.3,162.28,31.94]
[1752296548221,4.52582613,162.3,162.28,31.94]
[1752296548424,3.82582613,162.29,162.28,31.94]
[1752296549454,4.52582613,162.29,162.28,31.94]
[1752296549931,4.52582613,162.29,162.27,0.06]
[1752296550255,4.52582613,162.28,162.27,0.06]
[1752296558641,47.3105101,162.28,162.27,0.06]
[1752296558839,6.3438,162.27,162.21,32.02]
[1752296559151,3.82582613,162.22,162.21,32.02]
[1752296559337,4.52582613,162.22,162.21,32.02]
[1752296564860,3.82582613,162.24,162.21,32.69]
[1752296565549,3.82582613,162.25,162.22,0.67]
[1752296566351,0.68,162.26,162.23,0.67]
[1752296566352,3.82582613,162.26,162.23,0.67]
[1752296566545,3.82582613,162.25,162.23,0.67]
[1752296566860,3.82582613,162.24,162.21,32.02]
[1752296567151,4.50582613,162.24,162.21,32.02]
[1752296567557,3.82582613,162.24,162.21,32.69]
[1752296567860,3.82582613,162.25,162.21,32.69]
[1752296568353,3.82582613,162.24,162.21,32.69]
[1752296569058,3.82582613,162.22,162.21,32.02]
[1752296569265,4.50582613,162.22,162.21,32.02]
[1752296574361,3.82582613,162.22,162.21,32.02]
[1752296576067,4.50582613,162.22,162.21,32.02]
[1752296576654,3.82582613,162.22,162.21,32.02]
[1752296576962,3.82582613,162.24,162.21,32.69]
[1752296579764,4.50582613,162.25,162.21,32.69]
[1752296580750,3.82582613,162.25,162.22,0.67]
[1752296581559,10.87962613,162.27,162.23,0.67]
[1752296581871,10.87962613,162.27,162.24,31.9]
[1752296582649,10.87962613,162.27,162.24,32.57]
[1752296583074,4.50582613,162.26,162.24,31.9]
[1752296583668,0.68,162.25,162.24,31.9]
[1752296583972,4.50582613,162.25,162.24,31.9]
[1752296584773,4.50582613,162.25,162.21,31.98]
[1752296584974,3.82582613,162.22,162.21,31.98]
[1752296585669,4.50582613,162.22,162.21,31.98]
[1752296588473,3.82582613,162.22,162.21,31.98]
[1752296589971,4.50582613,162.22,162.21,31.98]
[1752296590973,3.82582613,162.22,162.21,31.98]
[1752296592480,4.50582613,162.22,162.21,31.98]
[1752296594679,3.82582613,162.22,162.21,31.98]
[1752296594874,3.82582613,162.23,162.21,32.68]
[1752296595682,3.82582613,162.23,162.21,31.98]
[1752296596257,3.82582613,162.24,162.21,32.68]
[1752296596454,3.82582613,162.24,162.22,0.7]
[1752296596678,3.82582613,162.25,162.22,0.7]
[1752296596887,3.82582613,162.26,162.23,0.7]
[1752296597260,7.0338,162.27,162.24,0.7]
[1752296597261,3.85582613,162.27,162.24,0.7]
[1752296597982,4.51582613,162.27,162.22,4.52582613]
[1752296598278,4.51582613,162.27,162.23,0.7]
[1752296598985,4.51582613,162.27,162.24,0.7]
[1752296598986,3.85582613,162.27,162.24,0.7]
[1752296599485,4.51582613,162.27,162.22,0.7]
[1752296599676,4.48582613,162.26,162.22,0.7]
[1752296599860,4.48582613,162.26,162.21,35.80582613]
[1752296599861,3.82582613,162.26,162.23,0.7]
[1752296600370,4.51582613,162.27,162.23,0.7]
[1752296600663,4.48582613,162.26,162.23,0.7]
[1752296600868,4.48582613,162.26,162.21,35.80582613]
[1752296601078,4.48582613,162.26,162.22,0.7]
[1752296601281,4.48582613,162.26,162.21,35.80582613]
[1752296601460,4.48582613,162.26,162.23,0.7]
[1752296601667,4.51582613,162.27,162.23,0.7]
[1752296601966,4.48582613,162.26,162.21,36.50582613]
[1752296602190,4.48582613,162.26,162.22,0.7]
[1752296603184,4.48582613,162.25,162.21,31.98]
[1752296603385,0.03,162.27,162.21,31.98]
[1752296603386,4.48582613,162.24,162.21,31.98]
[1752296603592,0.66,162.23,162.21,31.98]
[1752296603763,3.82582613,162.24,162.21,31.98]
[1752296603968,0.66,162.22,162.21,31.98]
[1752296604371,3.82582613,162.23,162.21,31.98]
[1752296604585,4.48582613,162.23,162.21,31.98]
[1752296604787,3.82582613,162.24,162.21,32.68]
[1752296605085,1.39623772,162.24,162.21,31.98]
[1752296605469,1.39623772,162.24,162.21,32.68]
[1752296608083,2.05623772,162.24,162.21,32.68]
[1752296608882,4.48582613,162.23,162.21,31.98]
[1752296609284,4.48582613,162.22,162.21,31.98]
[1752296609480,3.82582613,162.22,162.21,31.98]
[1752296610872,4.48582613,162.22,162.21,31.98]
[1752296611879,3.82582613,162.22,162.21,31.98]
[1752296612897,6.186,162.25,162.21,32.68]
[1752296613196,3.82582613,162.24,162.22,0.7]